Workbook

Sheet WhatIsStatistics
A1: Statistics are used everywhere
A2: The Art And Science Of Collecting, Analyzing, Presenting, And Interpreting Data.
A3: Art because we have to be artful in the way we set up the data and preset data.
A4: Science because we must use the Scientific Methods of Experiment and Probability (nothing is really absolute, except for maybe pure Math!).
A5: Data are small chunks such as first name, profit for month. Data is not information. Information is data presented in a useful way.
A6: Interpreting Data means that we make useful information from data (using statistics) so that we can make decisions.
A7: Because the future is always uncertain, we use statistics to interpret past data so that we can make decisions about the future (and hopefully reduce future uncertainty).

Sheet Accounting
A1: Accounting/Auditing: Taking Samples of Invoices (Chapter 7)
A3: Invoice | B3: Amount | E3: Every kth
A4: 1027 | B4: 4063 | D4: =MOD(ROW(A4),E$4)=0 -> FALSE | E4: 6
A5: 1028 | B5: 1175
A6: 1029 | B6: 550 | D6: Invoice | E6: Amount
A7: 1030 | B7: 411 | D7: 1029 | E7: 550
A8: 1031 | B8: 4152 | D8: 1035 | E8: 5073
A9: 1032 | B9: 575 | D9: 1041 | E9: 665
A10: 1033 | B10: 922 | D10: 1047 | E10: 5400
A11: 1034 | B11: 1249 | D11: 1053 | E11: 545
A12: 1035 | B12: 5073 | D12: 1059 | E12: 4048
A13: 1036 | B13: 542 | D13: 1065 | E13: 405
A14: 1037 | B14: 511 | D14: 1071 | E14: 2273
A15: 1038 | B15: 838 | D15: 1077 | E15: 439
A16: 1039 | B16: 5431 | D16: 1083 | E16: 5505
A17: 1040 | B17: 667 | D17: 1089 | E17: 874
A18: 1041 | B18: 665 | D18: 1095 | E18: 4265
A19: 1042 | B19: 762 | D19: 1101 | E19: 860
A20: 1043 | B20: 3145 | D20: 1107 | E20: 4111
A21: 1044 | B21: 938
A22: 1045 | B22: 1182
A23: 1046 | B23: 981
A24: 1047 | B24: 5400
A25: 1048 | B25: 458
A26: 1049 | B26: 622
A27: 1050 | B27: 1074
A28: 1051 | B28: 5611
A29: 1052 | B29: 966
A30: 1053 | B30: 545
A31: 1054 | B31: 558
A32: 1055 | B32: 4239
A33: 1056 | B33: 1168
A34: 1057 | B34: 518
A35: 1058 | B35: 444
A36: 1059 | B36: 4048
A37: 1060 | B37: 1187
A38: 1061 | B38: 1054
A39: 1062 | B39: 777
A40: 1063 | B40: 2237
A41: 1064 | B41: 1039
A42: 1065 | B42: 405
A43: 1066 | B43: 756
A44: 1067 | B44: 4499
A45: 1068 | B45: 709
A46: 1069 | B46: 1141
A47: 1070 | B47: 1205
A48: 1071 | B48: 2273
A49: 1072 | B49: 695
A50: 1073 | B50: 988
A51: 1074 | B51: 996
A52: 1075 | B52: 4690
A53: 1076 | B53: 427
A54: 1077 | B54: 439
A55: 1078 | B55: 666
A56: 1079 | B56: 4315
A57: 1080 | B57: 1075
A58: 1081 | B58: 532
A59: 1082 | B59: 764
A60: 1083 | B60: 5505
A61: 1084 | B61: 688
A62: 1085 | B62: 673
A63: 1086 | B63: 440
A64: 1087 | B64: 4013
A65: 1088 | B65: 505
A66: 1089 | B66: 874
A67: 1090 | B67: 1121
A68: 1091 | B68: 4512
A69: 1092 | B69: 510
A70: 1093 | B70: 816
A71: 1094 | B71: 878
A72: 1095 | B72: 4265
A73: 1096 | B73: 828
A74: 1097 | B74: 471
A75: 1098 | B75: 549
A76: 1099 | B76: 5590
A77: 1100 | B77: 1211
A78: 1101 | B78: 860
A79: 1102 | B79: 1191
A80: 1103 | B80: 2323
A81: 1104 | B81: 939
A82: 1105 | B82: 895
A83: 1106 | B83: 592
A84: 1107 | B84: 4111

Sheet Finance
A1: Finance and Economics: Projecting Stock Returns (Chapter 5)
A3: State of Economy | B3: Probability of State
A4: Good | B4: 0.25
A5: Fair | B5: 0.55
A6: Poor | B6: =1-SUM(B4:B5) -> 0.2
A8: Stock return if state occurs | B8: Prob * Return
A9: 0.17 | B9: =A9*B4 -> 0.0425
A10: 0.12 | B10: =A10*B5 -> 0.066
A11: 0.035 | B11: =A11*B6 -> 0.007 | D11: check
A12: Expected Return | B12: =SUM(B9:B11) -> 0.1155 | D12: =SUM(B4:B6*A9:A11) -> 0.1155

Sheet Marketing
A1: Marketing: Frequency of Sales Tables and Pie Charts (Chapter 2)
A3: Car Type Sold | C3: Car Type Sold | D3: Frequency
A4: Toyota | C4: Toyota | D4: =COUNTIF($A$4:$A$16,C4) -> 5
A5: Honda | C5: Honda | D5: =COUNTIF($A$4:$A$16,C5) -> 4
A6: Toyota | C6: Ford | D6: =COUNTIF($A$4:$A$16,C6) -> 2
A7: Ford | C7: Subaru | D7: =COUNTIF($A$4:$A$16,C7) -> 2
A8: Honda
A9: Toyota | E9: Better
A10: Honda
A11: Toyota
A12: Ford
A13: Honda
A14: Toyota
A15: Subaru
A16: Subaru

Sheet Production
A1: Production: Sampling box weight to see if filling machine is filling accurately (chapter 9)
A2: H0 : Mu = 10 grams
A3: H1 : Mu <> 10 grams
A4: Historical Average = | B4: 10 | C4: grams
A5: Historical Standard Deviation = | B5: 0.5 | C5: grams
A6: Level of Significance = | B6: 0.05
A7: Level of Significance Divided by 2 = | B7: =B6/2 -> 0.025
A8: Sample Mean = AVERAGE = | B8: =AVERAGE(A22:A99) -> 9.892474359 | C8: grams
A9: Sample Standard Deviation = STDEV = | B9: =STDEV(A22:A99) -> 0.2344368618 | C9: grams
A10: Sample size = COUNT = | B10: =COUNT($A$22:$A$99) -> 78
A11: Standard Error | B11: =B5/SQRT(B10) -> 0.05661385171 | C11: grams
A12: z | B12: =(B8-B4)/B11 -> -1.899281497
A13: X | B13: =B12*B11+B4 -> 9.892474359 | C13: =D102 -> P(9.892) | H13: =VLOOKUP(B13,B103:C602,2) -> 0.7788075177
A14: p-value = | B14: =IF(B8<B4,2*NORMDIST(B8,B4,B5/SQRT(B10),1),2*(1-NORMDIST(B8,B4,B5/SQRT(B10),1))) -> 0.05752747432
A15: p-value = | B15: =2*(1-NORMSDIST(ABS(B12))) -> 0.05752747432
A16: =IF(B15>B6,"Because the p-value is greater than our alpha, it is reasonable to assume that the machine is filling accurately"," Because the p-value is less than or equal to our alpha, it is reasonable to assume that the machine is not filling accurately") -> Because the p-value is greater than our alpha, it is reasonable to assume that the machine is filling accurately
A21: Sample data
A22: =RANDBETWEEN(9500,10300)/1000 -> 9.941
A23: 10.165
A24: 9.834
A25: 9.638
A26: 9.635
A27: 9.542
A28: 9.65
A29: 9.965
A30: 10.1
A31: 9.629
A32: 9.544
A33: 9.608
A34: 9.878
A35: 9.748
A36: 9.625
A37: 9.867
A38: 9.858
A39: 10.185
A40: 10.058
A41: 10.294
A42: 10.266
A43: 9.63
A44: 9.924
A45: 9.703
A46: 10.017
A47: 9.627
A48: 10.156
A49: 10.216
A50: 10.093
A51: 9.873
A52: 9.954
A53: 10.129
A54: 10.186
A55: 10.027
A56: 9.994
A57: 9.855
A58: 10.08
A59: 9.607
A60: 10.052
A61: 10.235
A62: 9.921
A63: 9.905
A64: 9.707
A65: 10.153
A66: 9.525
A67: 9.657
A68: 10.142
A69: 10.139
A70: 9.904
A71: 10.09
A72: 9.594
A73: 9.966
A74: 9.724
A75: 9.692
A76: 10.074
A77: 9.583
A78: 9.672
A79: 9.551
A80: 9.815
A81: 10.269
A82: 9.955
A83: 9.969
A84: 10.296
A85: 10.191
A86: =RANDBETWEEN(9500,10300)/1000 -> 9.543
A87: 9.847
A88: 10.139
A89: 10.032
A90: 10.26
A91: 9.724
A92: 9.537
A93: 9.822
A94: 9.629
A95: 10.249
A96: 9.846
A97: 9.566
A98: 9.845
A99: 9.692
A101: Chart Data:
A102: z | B102: X | C102: P(Exactly x) | D102: ="P("&ROUND(B8,3)&")" -> P(9.892) | E102: P(alpha)
A103: =(B103-B$4)/B$11 -> -35.32704347 | B103: 8 | C103: =NORMDIST(B103,B$4,B$5,0) -> 0.0002676604515 | D103: =IF(C103<=B$14/2,C103,0) -> 0.0002676604515 | E103: =IF(C103<=B$6/2,C103,0) -> 0.0002676604515
A104: -35.15040825 | B104: =B103+0.01 -> 8.01 | C104: 0.0002898951208 | D104: 0.0002898951208 | E104: 0.0002898951208
A105: -34.97377303 | B105: =B104+0.01 -> 8.02 | C105: 0.0003138512681 | D105: 0.0003138512681 | E105: 0.0003138512681
A106: -34.79713781 | B106: 8.03 | C106: 0.0003396511989 | D106: 0.0003396511989 | E106: 0.0003396511989
A107: -34.6205026 | B107: 8.04 | C107: 0.000367424996 | D107: 0.000367424996 | E107: 0.000367424996
A108: -34.44386738 | B108: 8.05 | C108: 0.0003973109428 | D108: 0.0003973109428 | E108: 0.0003973109428
A109: -34.26723216 | B109: 8.06 | C109: 0.000429455963 | D109: 0.000429455963 | E109: 0.000429455963
A110: -34.09059694 | B110: 8.07 | C110: 0.0004640160793 | D110: 0.0004640160793 | E110: 0.0004640160793
A111: -33.91396173 | B111: 8.08 | C111: 0.0005011568898 | D111: 0.0005011568898 | E111: 0.0005011568898
A112: -33.73732651 | B112: 8.09 | C112: 0.0005410540629 | D112: 0.0005410540629 | E112: 0.0005410540629
A113: -33.56069129 | B113: 8.1 | C113: 0.0005838938516 | D113: 0.0005838938516 | E113: 0.0005838938516
A114: -33.38405607 | B114: 8.11 | C114: 0.0006298736258 | D114: 0.0006298736258 | E114: 0.0006298736258
A115: -33.20742086 | B115: 8.12 | C115: 0.000679202425 | D115: 0.000679202425 | E115: 0.000679202425
A116: -33.03078564 | B116: 8.13 | C116: 0.0007321015291 | D116: 0.0007321015291 | E116: 0.0007321015291
A117: -32.85415042 | B117: 8.14 | C117: 0.0007888050499 | D117: 0.0007888050499 | E117: 0.0007888050499
A118: -32.67751521 | B118: 8.15 | C118: 0.0008495605411 | D118: 0.0008495605411 | E118: 0.0008495605411
A119: -32.50087999 | B119: 8.16 | C119: 0.0009146296281 | D119: 0.0009146296281 | E119: 0.0009146296281
A120: -32.32424477 | B120: 8.17 | C120: 0.0009842886577 | D120: 0.0009842886577 | E120: 0.0009842886577
A121: -32.14760955 | B121: 8.18 | C121: 0.001058829366 | D121: 0.001058829366 | E121: 0.001058829366
A122: -31.97097434 | B122: 8.19 | C122: 0.001138559568 | D122: 0.001138559568 | E122: 0.001138559568
A123: -31.79433912 | B123: 8.2 | C123: 0.00122380386 | D123: 0.00122380386 | E123: 0.00122380386
A124: -31.6177039 | B124: 8.21 | C124: 0.001314904351 | D124: 0.001314904351 | E124: 0.001314904351
A125: -31.44106868 | B125: 8.22 | C125: 0.001412221401 | D125: 0.001412221401 | E125: 0.001412221401
A126: -31.26443347 | B126: 8.23 | C126: 0.001516134383 | D126: 0.001516134383 | E126: 0.001516134383
A127: -31.08779825 | B127: 8.24 | C127: 0.001627042462 | D127: 0.001627042462 | E127: 0.001627042462
A128: -30.91116303 | B128: 8.25 | C128: 0.00174536539 | D128: 0.00174536539 | E128: 0.00174536539
A129: -30.73452781 | B129: 8.26 | C129: 0.001871544314 | D129: 0.001871544314 | E129: 0.001871544314
A130: -30.5578926 | B130: 8.27 | C130: 0.002006042601 | D130: 0.002006042601 | E130: 0.002006042601
A131: -30.38125738 | B131: 8.28 | C131: 0.00214934668 | D131: 0.00214934668 | E131: 0.00214934668
A132: -30.20462216 | B132: 8.29 | C132: 0.002301966888 | D132: 0.002301966888 | E132: 0.002301966888
A133: -30.02798695 | B133: 8.3 | C133: 0.002464438337 | D133: 0.002464438337 | E133: 0.002464438337
A134: -29.85135173 | B134: 8.31 | C134: 0.002637321784 | D134: 0.002637321784 | E134: 0.002637321784
A135: -29.67471651 | B135: 8.32 | C135: 0.002821204514 | D135: 0.002821204514 | E135: 0.002821204514
A136: -29.49808129 | B136: 8.33 | C136: 0.00301670123 | D136: 0.00301670123 | E136: 0.00301670123
A137: -29.32144608 | B137: 8.34 | C137: 0.003224454944 | D137: 0.003224454944 | E137: 0.003224454944
A138: -29.14481086 | B138: 8.35 | C138: 0.003445137878 | D138: 0.003445137878 | E138: 0.003445137878
A139: -28.96817564 | B139: 8.36 | C139: 0.003679452362 | D139: 0.003679452362 | E139: 0.003679452362
A140: -28.79154042 | B140: 8.37 | C140: 0.003928131731 | D140: 0.003928131731 | E140: 0.003928131731
A141: -28.61490521 | B141: 8.38 | C141: 0.004191941226 | D141: 0.004191941226 | E141: 0.004191941226
A142: -28.43826999 | B142: 8.39 | C142: 0.004471678879 | D142: 0.004471678879 | E142: 0.004471678879
A143: -28.26163477 | B143: 8.4 | C143: 0.004768176403 | D143: 0.004768176403 | E143: 0.004768176403
A144: -28.08499955 | B144: 8.41 | C144: 0.005082300057 | D144: 0.005082300057 | E144: 0.005082300057
A145: -27.90836434 | B145: 8.42 | C145: 0.005414951514 | D145: 0.005414951514 | E145: 0.005414951514
A146: -27.73172912 | B146: 8.43 | C146: 0.005767068695 | D146: 0.005767068695 | E146: 0.005767068695
A147: -27.5550939 | B147: 8.44 | C147: 0.006139626602 | D147: 0.006139626602 | E147: 0.006139626602
A148: -27.37845869 | B148: 8.45 | C148: 0.006533638112 | D148: 0.006533638112 | E148: 0.006533638112
A149: -27.20182347 | B149: 8.46 | C149: 0.006950154756 | D149: 0.006950154756 | E149: 0.006950154756
A150: -27.02518825 | B150: 8.47 | C150: 0.007390267459 | D150: 0.007390267459 | E150: 0.007390267459
A151: -26.84855303 | B151: 8.48 | C151: 0.007855107258 | D151: 0.007855107258 | E151: 0.007855107258
A152: -26.67191782 | B152: 8.49 | C152: 0.008345845969 | D152: 0.008345845969 | E152: 0.008345845969
A153: -26.4952826 | B153: 8.5 | C153: 0.008863696824 | D153: 0.008863696824 | E153: 0.008863696824
A154: -26.31864738 | B154: 8.51 | C154: 0.009409915054 | D154: 0.009409915054 | E154: 0.009409915054
A155: -26.14201216 | B155: 8.52 | C155: 0.009985798427 | D155: 0.009985798427 | E155: 0.009985798427
A156: -25.96537695 | B156: 8.53 | C156: 0.01059268773 | D156: 0.01059268773 | E156: 0.01059268773
A157: -25.78874173 | B157: 8.54 | C157: 0.01123196719 | D157: 0.01123196719 | E157: 0.01123196719
A158: -25.61210651 | B158: 8.55 | C158: 0.01190506484 | D158: 0.01190506484 | E158: 0.01190506484
A159: -25.4354713 | B159: 8.56 | C159: 0.01261345279 | D159: 0.01261345279 | E159: 0.01261345279
A160: -25.25883608 | B160: 8.57 | C160: 0.01335864748 | D160: 0.01335864748 | E160: 0.01335864748
A161: -25.08220086 | B161: 8.58 | C161: 0.01414220977 | D161: 0.01414220977 | E161: 0.01414220977
A162: -24.90556564 | B162: 8.59 | C162: 0.01496574505 | D162: 0.01496574505 | E162: 0.01496574505
A163: -24.72893043 | B163: 8.6 | C163: 0.01583090317 | D163: 0.01583090317 | E163: 0.01583090317
A164: -24.55229521 | B164: 8.61 | C164: 0.01673937831 | D164: 0.01673937831 | E164: 0.01673937831
A165: -24.37565999 | B165: 8.62 | C165: 0.0176929088 | D165: 0.0176929088 | E165: 0.0176929088
A166: -24.19902477 | B166: 8.63 | C166: 0.01869327674 | D166: 0.01869327674 | E166: 0.01869327674
A167: =(B167-B$4)/B$11 -> -24.02238956 | B167: 8.64 | C167: =NORMDIST(B167,B$4,B$5,0) -> 0.01974230759 | D167: =IF(C167<=B$14/2,C167,0) -> 0.01974230759 | E167: =IF(C167<=B$6/2,C167,0) -> 0.01974230759
A168: -23.84575434 | B168: 8.65 | C168: 0.02084186963 | D168: 0.02084186963 | E168: 0.02084186963
A169: -23.66911912 | B169: =B168+0.01 -> 8.66 | C169: 0.02199387326 | D169: 0.02199387326 | E169: 0.02199387326
A170: -23.4924839 | B170: 8.67 | C170: 0.02320027023 | D170: 0.02320027023 | E170: 0.02320027023
A171: -23.31584869 | B171: 8.68 | C171: 0.0244630527 | D171: 0.0244630527 | E171: 0.0244630527
A172: -23.13921347 | B172: 8.69 | C172: 0.02578425222 | D172: 0.02578425222 | E172: 0
A173: -22.96257825 | B173: 8.7 | C173: 0.02716593847 | D173: 0.02716593847 | E173: 0
A174: -22.78594304 | B174: 8.71 | C174: 0.02861021799 | D174: 0.02861021799 | E174: 0
A175: -22.60930782 | B175: 8.72 | C175: 0.03011923265 | D175: 0 | E175: 0
A176: -22.4326726 | B176: 8.73 | C176: 0.03169515805 | D176: 0 | E176: 0
A177: -22.25603738 | B177: 8.74 | C177: 0.03334020167 | D177: 0 | E177: 0
A178: -22.07940217 | B178: 8.75 | C178: 0.03505660099 | D178: 0 | E178: 0
A179: -21.90276695 | B179: 8.76 | C179: 0.03684662129 | D179: 0 | E179: 0
A180: -21.72613173 | B180: 8.77 | C180: 0.03871255346 | D180: 0 | E180: 0
A181: -21.54949651 | B181: 8.78 | C181: 0.04065671148 | D181: 0 | E181: 0
A182: -21.3728613 | B182: 8.79 | C182: 0.0426814298 | D182: 0 | E182: 0
A183: -21.19622608 | B183: 8.8 | C183: 0.04478906059 | D183: 0 | E183: 0
A184: -21.01959086 | B184: 8.81 | C184: 0.04698197072 | D184: 0 | E184: 0
A185: -20.84295564 | B185: 8.82 | C185: 0.04926253861 | D185: 0 | E185: 0
A186: -20.66632043 | B186: 8.83 | C186: 0.05163315094 | D186: 0 | E186: 0
A187: -20.48968521 | B187: 8.84 | C187: 0.05409619909 | D187: 0 | E187: 0
A188: -20.31304999 | B188: 8.85 | C188: 0.05665407548 | D188: 0 | E188: 0
A189: -20.13641478 | B189: 8.86 | C189: 0.05930916969 | D189: 0 | E189: 0
A190: -19.95977956 | B190: 8.87 | C190: 0.06206386443 | D190: 0 | E190: 0
A191: -19.78314434 | B191: 8.88 | C191: 0.06492053129 | D191: 0 | E191: 0
A192: -19.60650912 | B192: 8.89 | C192: 0.06788152636 | D192: 0 | E192: 0
A193: -19.42987391 | B193: 8.9 | C193: 0.07094918569 | D193: 0 | E193: 0
A194: -19.25323869 | B194: 8.91 | C194: 0.0741258205 | D194: 0 | E194: 0
A195: -19.07660347 | B195: 8.92 | C195: 0.07741371229 | D195: 0 | E195: 0
A196: -18.89996825 | B196: 8.93 | C196: 0.08081510785 | D196: 0 | E196: 0
A197: -18.72333304 | B197: 8.94 | C197: 0.08433221392 | D197: 0 | E197: 0
A198: -18.54669782 | B198: 8.95 | C198: 0.08796719196 | D198: 0 | E198: 0
A199: -18.3700626 | B199: 8.96 | C199: 0.09172215254 | D199: 0 | E199: 0
A200: -18.19342738 | B200: 8.97 | C200: 0.09559914976 | D200: 0 | E200: 0
A201: -18.01679217 | B201: 8.98 | C201: 0.09960017547 | D201: 0 | E201: 0
A202: -17.84015695 | B202: 8.99 | C202: 0.1037271534 | D202: 0 | E202: 0
A203: -17.66352173 | B203: 9 | C203: 0.107981933 | D203: 0 | E203: 0
A204: -17.48688652 | B204: 9.01 | C204: 0.1123662838 | D204: 0 | E204: 0
A205: -17.3102513 | B205: 9.02 | C205: 0.1168818887 | D205: 0 | E205: 0
... 397 more rows

Sheet RealWorldData
A1: Data | B1: Facts and figures collected, summarized, analyzed, and interpreted.
A2: Data Set | B2: The data collected in a particular study
A3: ="Number of "&A5&" = "&"Number of "&A7 -> Number of Elements = Number of Observation | B3: A data set with n elements contains n observations
A4: Total pieces of data | B4: Number of elements * # of variables
A5: Elements | B5: Are the entities on which data are collected (Also called Primary Keys in Database & Excel)
A6: Variables | B6: Characteristic of interest for the elements (Also called Fields in Database & Excel)
A7: Observation | B7: The set of measurements collected for a particular element (or primary key)
A9: Company Name | B9: Market Stock Value | C9: Qtrly Rev Growth | D9: EBITDA | E9: Earnings per Share | F9: P/E Ratio
A10: Whole Foods Market Inc. | B10: 3.19B | C10: 0.276 | D10: 510.27M | E10: 1.153 | F10: 19.71
A11: Kroger Co. | B11: 18.91B | C11: 0.115 | D11: 3.78B | E11: 1.795 | F11: 16.16
A12: Safeway | B12: 12.27B | C12: 0.073 | D12: 2.93B | E12: 2.04 | F12: 13.74
A14: Date | B14: Sales Rep | C14: Customer | D14: Sales | E14: COGS | F14: Region | H14: Row Labels | I14: Count of Sales
A15: =RANDBETWEEN(38500,TODAY()) -> 2010-05-31 | B15: =CHOOSE(RANDBETWEEN(1,5),"Sioux","Chin","Tina","Joy","Tom") -> Chin | C15: =CHOOSE(RANDBETWEEN(1,5),"PCC","Whole Foods","Safeway","Fred Myer","Coop") -> Fred Myer | D15: =IF(MOD(ROW(),17)=0,RANDBETWEEN(500,1250),IF(MOD(ROW(),10)=0,RANDBETWEEN(1000,2000),RANDBETWEEN(50,250))) -> 117 | E15: =D15*RANDBETWEEN(40,80)/100 -> 60.84 | F15: =CHOOSE(RANDBETWEEN(1,5),"West","NorthWest","MidWest","NorthEast","East") -> West | H15: 0-249 | I15: 498
A16: =RANDBETWEEN(38500,TODAY()) -> 2009-02-03 | B16: =CHOOSE(RANDBETWEEN(1,5),"Sioux","Chin","Tina","Joy","Tom") -> Chin | C16: =CHOOSE(RANDBETWEEN(1,5),"PCC","Whole Foods","Safeway","Fred Myer","Coop") -> Safeway | D16: =IF(MOD(ROW(),17)=0,RANDBETWEEN(500,1250),IF(MOD(ROW(),10)=0,RANDBETWEEN(1000,2000),RANDBETWEEN(50,250))) -> 232 | E16: =D16*RANDBETWEEN(40,80)/100 -> 116 | F16: =CHOOSE(RANDBETWEEN(1,5),"West","NorthWest","MidWest","NorthEast","East") -> MidWest | H16: 250-499 | I16: 1
A17: 2005-09-05 | B17: Joy | C17: PCC | D17: 695 | E17: 479.55 | F17: MidWest | H17: 500-749 | I17: 6
A18: 2007-05-10 | B18: Joy | C18: Fred Myer | D18: 226 | E18: 106.22 | F18: East | H18: 750-999 | I18: 18
A19: 2008-08-01 | B19: Chin | C19: Fred Myer | D19: 107 | E19: 55.64 | F19: East | H19: 1000-1249 | I19: 31
A20: 2008-08-25 | B20: Joy | C20: Fred Myer | D20: 1256 | E20: 615.44 | F20: East | H20: 1250-1499 | I20: 11
A21: 2005-12-14 | B21: Tom | C21: Fred Myer | D21: 234 | E21: 152.1 | F21: West | H21: 1500-1749 | I21: 11
A22: 2008-08-06 | B22: Sioux | C22: Coop | D22: 174 | E22: 109.62 | F22: East | H22: 1750-1999 | I22: 14
A23: 2007-07-19 | B23: Joy | C23: Whole Foods | D23: 178 | E23: 137.06 | F23: West | H23: Grand Total | I23: 590
A24: 2009-09-10 | B24: Tina | C24: Fred Myer | D24: 127 | E24: 52.07 | F24: NorthWest
A25: 2006-04-10 | B25: Tom | C25: Fred Myer | D25: 51 | E25: 35.19 | F25: East
A26: 2006-02-19 | B26: Tina | C26: Coop | D26: 184 | E26: 86.48 | F26: NorthEast
A27: 2008-06-27 | B27: Tom | C27: Safeway | D27: 118 | E27: 90.86 | F27: East
A28: 2006-07-31 | B28: Chin | C28: Coop | D28: 94 | E28: 48.88 | F28: East
A29: 2008-12-07 | B29: Chin | C29: PCC | D29: 90 | E29: 56.7 | F29: East
A30: 2007-02-09 | B30: Joy | C30: Coop | D30: 1285 | E30: 642.5 | F30: East
A31: 2006-05-01 | B31: Chin | C31: Whole Foods | D31: 202 | E31: 159.58 | F31: NorthWest
A32: 2006-12-24 | B32: Tina | C32: Coop | D32: 61 | E32: 40.26 | F32: East
A33: 2005-09-05 | B33: Joy | C33: PCC | D33: 77 | E33: 57.75 | F33: NorthEast
A34: 2010-03-10 | B34: Tina | C34: Coop | D34: 519 | E34: 264.69 | F34: NorthEast
A35: 2007-07-06 | B35: Sioux | C35: Coop | D35: 111 | E35: 63.27 | F35: NorthEast
A36: 2008-02-26 | B36: Joy | C36: Safeway | D36: 99 | E36: 73.26 | F36: NorthWest
A37: 2008-01-11 | B37: Tom | C37: Fred Myer | D37: 210 | E37: 161.7 | F37: MidWest
A38: 2010-01-17 | B38: Joy | C38: Safeway | D38: 189 | E38: 109.62 | F38: West
A39: 2009-05-12 | B39: Sioux | C39: Safeway | D39: 171 | E39: 97.47 | F39: NorthEast
A40: 2010-06-10 | B40: Joy | C40: Safeway | D40: 1516 | E40: 970.24 | F40: West
A41: 2009-08-02 | B41: Chin | C41: Safeway | D41: 219 | E41: 135.78 | F41: NorthWest
A42: 2009-08-07 | B42: Chin | C42: Safeway | D42: 89 | E42: 48.06 | F42: MidWest
A43: 2006-09-07 | B43: Sioux | C43: Safeway | D43: 203 | E43: 87.29 | F43: NorthEast
A44: 2006-07-15 | B44: Tina | C44: Fred Myer | D44: 173 | E44: 88.23 | F44: NorthEast
A45: 2009-03-12 | B45: Tina | C45: PCC | D45: 241 | E45: 192.8 | F45: East
A46: 2010-01-07 | B46: Joy | C46: Whole Foods | D46: 103 | E46: 62.83 | F46: MidWest
A47: 2007-07-18 | B47: Chin | C47: Fred Myer | D47: 206 | E47: 127.72 | F47: West
A48: 2009-06-12 | B48: Tom | C48: Coop | D48: 156 | E48: 82.68 | F48: East
A49: 2009-06-12 | B49: Tom | C49: Safeway | D49: 123 | E49: 76.26 | F49: NorthWest
A50: 2008-08-10 | B50: Chin | C50: PCC | D50: 1392 | E50: 737.76 | F50: West
A51: 2007-02-01 | B51: Tina | C51: PCC | D51: 722 | E51: 505.4 | F51: West
A52: 2007-11-08 | B52: Tina | C52: PCC | D52: 68 | E52: 34 | F52: West
A53: 2007-08-11 | B53: Sioux | C53: PCC | D53: 183 | E53: 111.63 | F53: West
A54: 2005-08-10 | B54: Tina | C54: Fred Myer | D54: 214 | E54: 169.06 | F54: East
A55: 2007-07-30 | B55: Joy | C55: PCC | D55: 154 | E55: 100.1 | F55: NorthWest
A56: 2007-11-19 | B56: Joy | C56: Safeway | D56: 52 | E56: 21.84 | F56: West
A57: 2008-11-08 | B57: Joy | C57: Coop | D57: 175 | E57: 77 | F57: East
A58: 2008-03-26 | B58: Sioux | C58: Coop | D58: 194 | E58: 139.68 | F58: NorthEast
A59: 2009-04-08 | B59: Tom | C59: Safeway | D59: 121 | E59: 62.92 | F59: NorthWest
A60: 2007-10-25 | B60: Tom | C60: Safeway | D60: 1720 | E60: 1032 | F60: West
A61: 2008-11-08 | B61: Tina | C61: Fred Myer | D61: 128 | E61: 58.88 | F61: East
A62: 2010-01-13 | B62: Tom | C62: Fred Myer | D62: 178 | E62: 90.78 | F62: MidWest
A63: 2007-01-20 | B63: Chin | C63: Fred Myer | D63: 152 | E63: 91.2 | F63: NorthWest
A64: 2006-01-04 | B64: Tina | C64: Safeway | D64: 50 | E64: 34 | F64: MidWest
A65: 2007-04-29 | B65: Chin | C65: Coop | D65: 159 | E65: 71.55 | F65: NorthWest
A66: 2008-12-29 | B66: Tom | C66: Coop | D66: 70 | E66: 53.2 | F66: West
A67: 2005-11-19 | B67: Tom | C67: Fred Myer | D67: 216 | E67: 157.68 | F67: MidWest
A68: 2008-05-03 | B68: Sioux | C68: PCC | D68: 631 | E68: 448.01 | F68: NorthEast
A69: 2006-08-24 | B69: Tom | C69: Safeway | D69: 235 | E69: 159.8 | F69: NorthEast
A70: 2009-08-14 | B70: Tom | C70: Fred Myer | D70: 1296 | E70: 544.32 | F70: East
A71: 2008-12-06 | B71: Tina | C71: Coop | D71: 90 | E71: 63.9 | F71: MidWest
A72: 2010-06-15 | B72: Joy | C72: Fred Myer | D72: 142 | E72: 96.56 | F72: East
A73: 2008-12-20 | B73: Joy | C73: Whole Foods | D73: 72 | E73: 50.4 | F73: West
A74: 2006-09-01 | B74: Joy | C74: PCC | D74: 142 | E74: 96.56 | F74: West
A75: 2007-02-23 | B75: Joy | C75: Safeway | D75: 244 | E75: 107.36 | F75: NorthWest
A76: 2008-10-28 | B76: Tom | C76: Whole Foods | D76: 63 | E76: 32.76 | F76: East
A77: 2008-06-28 | B77: Tina | C77: PCC | D77: 119 | E77: 74.97 | F77: West
A78: 2010-06-13 | B78: Tom | C78: PCC | D78: 61 | E78: 44.53 | F78: MidWest
A79: 2006-11-30 | B79: Sioux | C79: Fred Myer | D79: 234 | E79: 170.82 | F79: NorthWest
A80: =RANDBETWEEN(38500,TODAY()) -> 2009-12-31 | B80: =CHOOSE(RANDBETWEEN(1,5),"Sioux","Chin","Tina","Joy","Tom") -> Sioux | C80: =CHOOSE(RANDBETWEEN(1,5),"PCC","Whole Foods","Safeway","Fred Myer","Coop") -> Whole Foods | D80: =IF(MOD(ROW(),17)=0,RANDBETWEEN(500,1250),IF(MOD(ROW(),10)=0,RANDBETWEEN(1000,2000),RANDBETWEEN(50,250))) -> 1411 | E80: =D80*RANDBETWEEN(40,80)/100 -> 987.7 | F80: =CHOOSE(RANDBETWEEN(1,5),"West","NorthWest","MidWest","NorthEast","East") -> MidWest
A81: 2008-01-13 | B81: Joy | C81: Whole Foods | D81: 100 | E81: 77 | F81: MidWest
A82: 2007-02-26 | B82: Chin | C82: PCC | D82: 101 | E82: 60.6 | F82: East
A83: 2010-04-23 | B83: Tina | C83: Coop | D83: 198 | E83: 126.72 | F83: East
A84: 2006-02-07 | B84: Chin | C84: Fred Myer | D84: 231 | E84: 94.71 | F84: NorthEast
A85: 2007-09-05 | B85: Sioux | C85: PCC | D85: 542 | E85: 314.36 | F85: NorthEast
A86: 2006-11-07 | B86: Joy | C86: Whole Foods | D86: 163 | E86: 118.99 | F86: NorthWest
A87: 2008-05-02 | B87: Sioux | C87: Fred Myer | D87: 178 | E87: 110.36 | F87: West
A88: 2006-01-10 | B88: Tina | C88: Fred Myer | D88: 130 | E88: 85.8 | F88: East
A89: 2007-09-25 | B89: Tina | C89: Coop | D89: 152 | E89: 62.32 | F89: MidWest
A90: 2008-10-08 | B90: Chin | C90: Fred Myer | D90: 1067 | E90: 778.91 | F90: MidWest
A91: 2005-09-27 | B91: Chin | C91: PCC | D91: 80 | E91: 57.6 | F91: NorthWest
A92: 2009-08-10 | B92: Tina | C92: Fred Myer | D92: 173 | E92: 95.15 | F92: West
A93: 2007-08-07 | B93: Chin | C93: Fred Myer | D93: 120 | E93: 51.6 | F93: NorthEast
A94: 2009-09-21 | B94: Joy | C94: Coop | D94: 178 | E94: 99.68 | F94: NorthEast
A95: 2008-11-01 | B95: Sioux | C95: PCC | D95: 197 | E95: 122.14 | F95: MidWest
A96: 2007-08-18 | B96: Chin | C96: Coop | D96: 250 | E96: 147.5 | F96: NorthWest
A97: 2010-01-18 | B97: Tom | C97: Fred Myer | D97: 175 | E97: 92.75 | F97: East
A98: 2010-01-02 | B98: Sioux | C98: PCC | D98: 170 | E98: 117.3 | F98: West
A99: 2005-08-14 | B99: Tom | C99: Whole Foods | D99: 198 | E99: 122.76 | F99: NorthWest
A100: 2007-04-30 | B100: Tina | C100: Whole Foods | D100: 1602 | E100: 1185.48 | F100: East
A101: 2009-06-11 | B101: Chin | C101: Fred Myer | D101: 119 | E101: 67.83 | F101: NorthEast
A102: 2008-11-26 | B102: Tom | C102: Coop | D102: 1014 | E102: 436.02 | F102: West
A103: 2006-08-24 | B103: Chin | C103: PCC | D103: 202 | E103: 84.84 | F103: NorthEast
A104: 2006-03-17 | B104: Tom | C104: Whole Foods | D104: 87 | E104: 51.33 | F104: NorthEast
A105: 2007-07-23 | B105: Chin | C105: Fred Myer | D105: 134 | E105: 97.82 | F105: East
A106: 2007-01-30 | B106: Chin | C106: Fred Myer | D106: 186 | E106: 96.72 | F106: MidWest
A107: 2007-12-10 | B107: Joy | C107: PCC | D107: 139 | E107: 65.33 | F107: NorthEast
A108: 2009-07-03 | B108: Chin | C108: Fred Myer | D108: 113 | E108: 58.76 | F108: West
A109: 2008-04-14 | B109: Joy | C109: Whole Foods | D109: 210 | E109: 86.1 | F109: MidWest
A110: 2009-06-10 | B110: Chin | C110: Fred Myer | D110: 1775 | E110: 1295.75 | F110: MidWest
A111: 2007-07-23 | B111: Joy | C111: Whole Foods | D111: 146 | E111: 71.54 | F111: East
A112: 2008-07-02 | B112: Sioux | C112: Fred Myer | D112: 240 | E112: 175.2 | F112: MidWest
A113: 2009-03-23 | B113: Sioux | C113: PCC | D113: 123 | E113: 70.11 | F113: NorthEast
A114: 2009-05-11 | B114: Sioux | C114: Whole Foods | D114: 189 | E114: 115.29 | F114: West
A115: 2006-06-21 | B115: Joy | C115: Whole Foods | D115: 200 | E115: 130 | F115: West
A116: 2009-02-19 | B116: Joy | C116: Whole Foods | D116: 157 | E116: 103.62 | F116: MidWest
A117: 2007-01-23 | B117: Sioux | C117: PCC | D117: 247 | E117: 163.02 | F117: NorthEast
A118: 2008-03-21 | B118: Tina | C118: Whole Foods | D118: 56 | E118: 41.44 | F118: NorthEast
A119: 2009-07-05 | B119: Joy | C119: PCC | D119: 757 | E119: 446.63 | F119: West
A120: 2010-05-03 | B120: Sioux | C120: Coop | D120: 1790 | E120: 930.8 | F120: West
A121: 2008-03-10 | B121: Chin | C121: Fred Myer | D121: 88 | E121: 43.12 | F121: NorthEast
A122: 2006-11-10 | B122: Chin | C122: Fred Myer | D122: 235 | E122: 112.8 | F122: East
A123: 2008-03-03 | B123: Joy | C123: Coop | D123: 68 | E123: 37.4 | F123: NorthWest
A124: 2009-04-18 | B124: Tina | C124: PCC | D124: 236 | E124: 169.92 | F124: NorthWest
A125: 2005-07-18 | B125: Tina | C125: Fred Myer | D125: 133 | E125: 101.08 | F125: MidWest
A126: 2009-08-30 | B126: Joy | C126: Safeway | D126: 136 | E126: 81.6 | F126: NorthEast
A127: 2007-02-22 | B127: Tina | C127: PCC | D127: 196 | E127: 137.2 | F127: NorthWest
A128: 2009-01-16 | B128: Joy | C128: Fred Myer | D128: 114 | E128: 78.66 | F128: NorthEast
A129: 2009-09-23 | B129: Joy | C129: PCC | D129: 97 | E129: 62.08 | F129: East
A130: 2009-12-30 | B130: Tom | C130: Coop | D130: 1286 | E130: 720.16 | F130: MidWest
A131: 2006-12-22 | B131: Tina | C131: Coop | D131: 136 | E131: 103.36 | F131: MidWest
A132: 2010-02-17 | B132: Tina | C132: Safeway | D132: 96 | E132: 75.84 | F132: West
A133: 2008-09-14 | B133: Sioux | C133: PCC | D133: 144 | E133: 59.04 | F133: NorthEast
A134: 2006-08-08 | B134: Tom | C134: PCC | D134: 167 | E134: 93.52 | F134: MidWest
A135: 2005-12-18 | B135: Chin | C135: Whole Foods | D135: 157 | E135: 78.5 | F135: MidWest
A136: 2007-10-08 | B136: Joy | C136: Fred Myer | D136: 888 | E136: 488.4 | F136: MidWest
A137: 2008-02-06 | B137: Chin | C137: Fred Myer | D137: 205 | E137: 82 | F137: East
A138: 2006-04-20 | B138: Chin | C138: Safeway | D138: 205 | E138: 116.85 | F138: West
A139: 2006-06-20 | B139: Tina | C139: Safeway | D139: 176 | E139: 135.52 | F139: NorthWest
A140: 2009-01-18 | B140: Tina | C140: PCC | D140: 1047 | E140: 502.56 | F140: MidWest
A141: 2006-05-17 | B141: Chin | C141: Whole Foods | D141: 98 | E141: 43.12 | F141: NorthEast
A142: 2009-03-28 | B142: Tom | C142: Safeway | D142: 203 | E142: 119.77 | F142: NorthWest
A143: 2009-10-24 | B143: Sioux | C143: Fred Myer | D143: 135 | E143: 67.5 | F143: NorthWest
A144: =RANDBETWEEN(38500,TODAY()) -> 2006-12-02 | B144: =CHOOSE(RANDBETWEEN(1,5),"Sioux","Chin","Tina","Joy","Tom") -> Chin | C144: =CHOOSE(RANDBETWEEN(1,5),"PCC","Whole Foods","Safeway","Fred Myer","Coop") -> Coop | D144: =IF(MOD(ROW(),17)=0,RANDBETWEEN(500,1250),IF(MOD(ROW(),10)=0,RANDBETWEEN(1000,2000),RANDBETWEEN(50,250))) -> 115 | E144: =D144*RANDBETWEEN(40,80)/100 -> 82.8 | F144: =CHOOSE(RANDBETWEEN(1,5),"West","NorthWest","MidWest","NorthEast","East") -> West
A145: 2007-08-06 | B145: Joy | C145: PCC | D145: 141 | E145: 66.27 | F145: MidWest
A146: 2009-09-24 | B146: Chin | C146: Safeway | D146: 129 | E146: 54.18 | F146: NorthWest
A147: 2009-08-15 | B147: Chin | C147: PCC | D147: 163 | E147: 66.83 | F147: West
A148: 2009-02-20 | B148: Tina | C148: Coop | D148: 110 | E148: 75.9 | F148: East
A149: 2006-01-11 | B149: Tom | C149: Fred Myer | D149: 90 | E149: 58.5 | F149: West
A150: 2009-02-28 | B150: Joy | C150: PCC | D150: 1490 | E150: 610.9 | F150: NorthEast
A151: 2007-07-17 | B151: Tom | C151: Coop | D151: 80 | E151: 42.4 | F151: NorthEast
A152: 2008-07-18 | B152: Joy | C152: Safeway | D152: 191 | E152: 110.78 | F152: West
A153: 2005-12-07 | B153: Tina | C153: PCC | D153: 885 | E153: 389.4 | F153: NorthWest
A154: 2008-03-05 | B154: Tina | C154: PCC | D154: 146 | E154: 116.8 | F154: East
A155: 2006-08-19 | B155: Joy | C155: Whole Foods | D155: 172 | E155: 129 | F155: NorthWest
A156: 2010-05-18 | B156: Tina | C156: Coop | D156: 75 | E156: 56.25 | F156: NorthWest
A157: 2008-04-24 | B157: Sioux | C157: Safeway | D157: 96 | E157: 68.16 | F157: NorthWest
A158: 2008-12-02 | B158: Sioux | C158: Safeway | D158: 201 | E158: 112.56 | F158: NorthWest
A159: 2007-08-30 | B159: Sioux | C159: Whole Foods | D159: 201 | E159: 90.45 | F159: NorthWest
A160: 2008-02-28 | B160: Chin | C160: Safeway | D160: 1274 | E160: 522.34 | F160: West
A161: 2007-03-15 | B161: Tina | C161: Whole Foods | D161: 113 | E161: 61.02 | F161: MidWest
A162: 2010-05-26 | B162: Tina | C162: Whole Foods | D162: 54 | E162: 30.24 | F162: MidWest
A163: 2007-05-23 | B163: Sioux | C163: Whole Foods | D163: 213 | E163: 134.19 | F163: NorthWest
A164: 2010-03-17 | B164: Sioux | C164: Whole Foods | D164: 162 | E164: 115.02 | F164: NorthWest
A165: 2007-03-18 | B165: Tom | C165: Whole Foods | D165: 147 | E165: 113.19 | F165: NorthWest
A166: 2009-02-13 | B166: Sioux | C166: Fred Myer | D166: 62 | E166: 41.54 | F166: East
A167: 2005-07-23 | B167: Tina | C167: Safeway | D167: 244 | E167: 141.52 | F167: NorthEast
A168: 2009-11-13 | B168: Sioux | C168: Coop | D168: 50 | E168: 25.5 | F168: East
A169: 2007-04-26 | B169: Tina | C169: Coop | D169: 111 | E169: 69.93 | F169: MidWest
A170: 2008-03-03 | B170: Sioux | C170: Safeway | D170: 627 | E170: 307.23 | F170: MidWest
A171: 2007-01-07 | B171: Tina | C171: Coop | D171: 163 | E171: 120.62 | F171: East
A172: 2005-11-09 | B172: Tom | C172: Fred Myer | D172: 193 | E172: 96.5 | F172: NorthWest
A173: 2009-12-22 | B173: Sioux | C173: PCC | D173: 177 | E173: 107.97 | F173: NorthWest
A174: 2008-03-28 | B174: Joy | C174: PCC | D174: 70 | E174: 55.3 | F174: West
A175: 2009-04-22 | B175: Sioux | C175: Safeway | D175: 234 | E175: 177.84 | F175: NorthEast
A176: 2005-07-02 | B176: Chin | C176: Fred Myer | D176: 54 | E176: 41.04 | F176: NorthWest
A177: 2006-04-23 | B177: Sioux | C177: Whole Foods | D177: 246 | E177: 174.66 | F177: NorthWest
A178: 2005-06-28 | B178: Tom | C178: Whole Foods | D178: 225 | E178: 103.5 | F178: NorthEast
A179: 2005-12-15 | B179: Sioux | C179: Whole Foods | D179: 85 | E179: 34 | F179: East
A180: 2006-04-30 | B180: Tina | C180: Fred Myer | D180: 1790 | E180: 1306.7 | F180: NorthEast
A181: 2009-12-31 | B181: Sioux | C181: Whole Foods | D181: 200 | E181: 138 | F181: NorthEast
A182: 2008-05-03 | B182: Chin | C182: Fred Myer | D182: 63 | E182: 45.36 | F182: West
A183: 2007-06-24 | B183: Joy | C183: Coop | D183: 124 | E183: 53.32 | F183: West
A184: 2006-09-26 | B184: Joy | C184: PCC | D184: 167 | E184: 118.57 | F184: East
A185: 2010-04-02 | B185: Joy | C185: Fred Myer | D185: 240 | E185: 182.4 | F185: West
A186: 2010-04-24 | B186: Sioux | C186: Whole Foods | D186: 172 | E186: 108.36 | F186: East
A187: 2006-08-18 | B187: Joy | C187: Safeway | D187: 849 | E187: 551.85 | F187: East
A188: 2005-06-16 | B188: Chin | C188: Fred Myer | D188: 207 | E188: 124.2 | F188: West
A189: 2008-01-02 | B189: Tina | C189: PCC | D189: 144 | E189: 60.48 | F189: NorthWest
A190: 2006-05-07 | B190: Tom | C190: PCC | D190: 1396 | E190: 1033.04 | F190: NorthWest
A191: 2006-11-03 | B191: Tom | C191: Fred Myer | D191: 215 | E191: 103.2 | F191: West
A192: 2006-05-27 | B192: Tom | C192: PCC | D192: 242 | E192: 174.24 | F192: West
A193: 2007-01-23 | B193: Chin | C193: Coop | D193: 150 | E193: 84 | F193: MidWest
A194: 2005-06-24 | B194: Tom | C194: PCC | D194: 72 | E194: 51.84 | F194: MidWest
A195: 2008-06-19 | B195: Sioux | C195: Safeway | D195: 231 | E195: 133.98 | F195: West
A196: 2006-09-29 | B196: Sioux | C196: Whole Foods | D196: 138 | E196: 91.08 | F196: NorthEast
A197: 2009-02-19 | B197: Tom | C197: Coop | D197: 168 | E197: 102.48 | F197: NorthWest
A198: 2008-05-26 | B198: Tina | C198: Safeway | D198: 234 | E198: 166.14 | F198: MidWest
A199: 2007-11-01 | B199: Chin | C199: Whole Foods | D199: 89 | E199: 40.94 | F199: MidWest
A200: 2009-04-30 | B200: Chin | C200: PCC | D200: 1476 | E200: 723.24 | F200: East
A201: 2007-12-04 | B201: Joy | C201: Whole Foods | D201: 238 | E201: 159.46 | F201: MidWest
A202: 2007-08-24 | B202: Tom | C202: Whole Foods | D202: 73 | E202: 43.07 | F202: West
... 402 more rows

Sheet ScalesOfMeasurement
A1: Nominal | B1: Categories or names are used. There is no order or rank to the categories. You count how many are in each category. You cannot calculate a mean (average) | G1: Ordinal | H1: Categories or names are used. There is an order or rank to the categories, but you do not know the distance between each category. You count how many are in each category. You cannot calculate a mean (average) | M1: Interval | O1: The numeric data is ranked or ordered and has a fixed unit between each rank. Interval data is usually a scale such as scores on a test or temperature. Zero is just a point on the scale. | W1: Ratio | X1: The numeric data is ranked or ordered and has a fixed unit between each rank and zero means that nothing exists
A2: Categorical Data. Categorical Variable is non-numeric (counting the number of observations in each category). | M2: Quantitative Data. Quantitative Variable is numeric (how much or how many).
A4: Student | B4: Phone Type | D4: Row Labels | E4: Count of Phone Type | G4: Student | H4: Rate Instructor | J4: Row Labels | K4: Count of Rate Instructor | M4: Fahrenheit | O4: Celsius | Q4: Test Scores | S4: Shoe Size? | U4: Scores From Test | W4: Customer Name | X4: Amount in Bank
A5: Student 01 | B5: Motorola | D5: iPhone | E5: 104 | G5: Student 01 | H5: OK | J5: Excelent | K5: 56 | M5: -10 | O5: =CONVERT(M5,"F","C") -> -23.33333333 | Q5: 0 | S5: 0 | U5: 3.5 | W5: Joe | X5: 0
A6: Student 02 | B6: Motorola | D6: Motorola | E6: 52 | G6: Student 02 | H6: Poor | J6: Good | K6: 47 | M6: -9 | O6: =CONVERT(M6,"F","C") -> -22.77777778 | Q6: 1 | S6: 2 | U6: 2.5 | W6: Sioux | X6: 500
A7: Student 03 | B7: Samsung | D7: Nokia | E7: 89 | G7: Student 03 | H7: Good | J7: OK | K7: 105 | M7: -8 | O7: -22.22222222 | Q7: 2 | S7: 4 | U7: 4 | W7: Dean | X7: 6000
A8: Student 04 | B8: Nokia | D8: Samsung | E8: 50 | G8: Student 04 | H8: Good | J8: Poor | K8: 177 | M8: -7 | O8: -21.66666667 | Q8: 3 | S8: 6 | U8: 5 | W8: Joe | X8: 25.25
A9: Student 05 | B9: Motorola | D9: Sony Erickson | E9: 42 | G9: Student 05 | H9: OK | J9: Grand Total | K9: 385 | M9: -6 | O9: -21.11111111 | Q9: 4 | S9: 8 | U9: 4.5 | W9: Tina | X9: 7500
A10: Student 06 | B10: Nokia | D10: Sprint | E10: 48 | G10: Student 06 | H10: Poor | M10: -5 | O10: -20.55555556 | Q10: 5 | S10: 10 | U10: 4 | W10: Amy | X10: 4525.5
A11: Student 07 | B11: Sprint | D11: Grand Total | E11: 385 | G11: Student 07 | H11: Poor | M11: -4 | O11: -20 | S11: 12 | U11: 5 | W11: Ming | X11: 526.5
A12: Student 08 | B12: iPhone | G12: Student 08 | H12: OK | M12: -3 | O12: -19.44444444 | S12: 14
A13: Student 09 | B13: Motorola | D13: Mean = AVEARGE = | E13: =E5/E5 -> 1 | G13: Student 09 | H13: Poor | J13: Mean = AVEARGE = | K13: =K5/K5 -> 1 | M13: -2 | O13: -18.88888889
A14: Student 10 | B14: iPhone | G14: Student 10 | H14: Poor | M14: -1 | O14: -18.33333333 | S14: Mean = AVEARGE = | U14: =AVERAGE(U5:U11) -> 4.071428571 | W14: Mean = AVEARGE = | X14: =AVERAGE(X5:X11) -> 2725.321429
A15: Student 11 | B15: Samsung | G15: Student 11 | H15: Poor | M15: 0 | O15: -17.77777778
A16: Student 12 | B16: Motorola | G16: Student 12 | H16: OK | M16: 1 | O16: -17.22222222
A17: Student 13 | B17: Samsung | G17: Student 13 | H17: Excelent | M17: 2 | O17: -16.66666667
A18: Student 14 | B18: iPhone | G18: Student 14 | H18: Excelent | M18: 3 | O18: -16.11111111
A19: Student 15 | B19: Nokia | G19: Student 15 | H19: Poor | M19: 4 | O19: -15.55555556
A20: Student 16 | B20: Nokia | G20: Student 16 | H20: Poor | M20: 5 | O20: -15
A21: Student 17 | B21: Sprint | G21: Student 17 | H21: Good | M21: 6 | O21: -14.44444444
A22: Student 18 | B22: Sony Erickson | G22: Student 18 | H22: Poor | M22: 7 | O22: -13.88888889
A23: Student 19 | B23: Nokia | G23: Student 19 | H23: Excelent | M23: 8 | O23: -13.33333333
A24: Student 20 | B24: Nokia | G24: Student 20 | H24: Poor | M24: 9 | O24: -12.77777778
A25: Student 21 | B25: iPhone | G25: Student 21 | H25: OK | M25: 10 | O25: -12.22222222
A26: Student 22 | B26: iPhone | G26: Student 22 | H26: OK | M26: 11 | O26: -11.66666667
A27: Student 23 | B27: Nokia | G27: Student 23 | H27: OK | M27: 12 | O27: -11.11111111
A28: Student 24 | B28: Samsung | G28: Student 24 | H28: Excelent | M28: 13 | O28: -10.55555556
A29: Student 25 | B29: iPhone | G29: Student 25 | H29: OK | M29: 14 | O29: -10
A30: Student 26 | B30: iPhone | G30: Student 26 | H30: OK | M30: 15 | O30: -9.444444444
A31: Student 27 | B31: iPhone | G31: Student 27 | H31: Poor | M31: 16 | O31: -8.888888889
A32: Student 28 | B32: Sprint | G32: Student 28 | H32: OK | M32: 17 | O32: -8.333333333
A33: Student 29 | B33: iPhone | G33: Student 29 | H33: Good | M33: 18 | O33: -7.777777778
A34: Student 30 | B34: Sony Erickson | G34: Student 30 | H34: Excelent | M34: 19 | O34: -7.222222222
A35: Student 31 | B35: Samsung | G35: Student 31 | H35: Excelent | M35: 20 | O35: -6.666666667
A36: Student 32 | B36: Nokia | G36: Student 32 | H36: OK | M36: 21 | O36: -6.111111111
A37: Student 33 | B37: iPhone | G37: Student 33 | H37: Good | M37: 22 | O37: -5.555555556
A38: Student 34 | B38: Nokia | G38: Student 34 | H38: Poor | M38: 23 | O38: -5
A39: Student 35 | B39: iPhone | G39: Student 35 | H39: Poor | M39: 24 | O39: -4.444444444
A40: Student 36 | B40: Samsung | G40: Student 36 | H40: Poor | M40: 25 | O40: -3.888888889
A41: Student 37 | B41: Sony Erickson | G41: Student 37 | H41: Excelent | M41: 26 | O41: -3.333333333
A42: Student 38 | B42: iPhone | G42: Student 38 | H42: Poor | M42: 27 | O42: -2.777777778
A43: Student 39 | B43: Sony Erickson | G43: Student 39 | H43: OK | M43: 28 | O43: -2.222222222
A44: Student 40 | B44: Nokia | G44: Student 40 | H44: Poor | M44: 29 | O44: -1.666666667
A45: Student 41 | B45: Nokia | G45: Student 41 | H45: Excelent | M45: 30 | O45: -1.111111111
A46: Student 42 | B46: Sony Erickson | G46: Student 42 | H46: OK | M46: 31 | O46: -0.5555555556
A47: Student 43 | B47: Sprint | G47: Student 43 | H47: OK | M47: 32 | O47: 0
A48: Student 44 | B48: Nokia | G48: Student 44 | H48: Poor | M48: 33 | O48: 0.5555555556
A49: Student 45 | B49: Nokia | G49: Student 45 | H49: Poor | M49: 34 | O49: 1.111111111
A50: Student 46 | B50: Motorola | G50: Student 46 | H50: Poor | M50: 35 | O50: 1.666666667
A51: Student 47 | B51: Samsung | G51: Student 47 | H51: OK | M51: 36 | O51: 2.222222222
A52: Student 48 | B52: iPhone | G52: Student 48 | H52: Good | M52: 37 | O52: 2.777777778
A53: Student 49 | B53: Nokia | G53: Student 49 | H53: Good | M53: 38 | O53: 3.333333333
A54: Student 50 | B54: Nokia | G54: Student 50 | H54: OK | M54: 39 | O54: 3.888888889
A55: Student 51 | B55: Sprint | G55: Student 51 | H55: Excelent | M55: 40 | O55: 4.444444444
A56: Student 52 | B56: Nokia | G56: Student 52 | H56: Poor | M56: 41 | O56: 5
A57: Student 53 | B57: Nokia | G57: Student 53 | H57: Excelent | M57: 42 | O57: 5.555555556
A58: Student 54 | B58: Sprint | G58: Student 54 | H58: Good | M58: 43 | O58: 6.111111111
A59: Student 55 | B59: Sony Erickson | G59: Student 55 | H59: Poor | M59: 44 | O59: 6.666666667
A60: Student 56 | B60: Nokia | G60: Student 56 | H60: Poor | M60: 45 | O60: 7.222222222
A61: Student 57 | B61: iPhone | G61: Student 57 | H61: Good | M61: 46 | O61: 7.777777778
A62: Student 58 | B62: Samsung | G62: Student 58 | H62: Poor
A63: Student 59 | B63: Motorola | G63: Student 59 | H63: OK
A64: Student 60 | B64: iPhone | G64: Student 60 | H64: Poor
A65: Student 61 | B65: Sony Erickson | G65: Student 61 | H65: Poor
A66: Student 62 | B66: Nokia | G66: Student 62 | H66: OK
A67: Student 63 | B67: Nokia | G67: Student 63 | H67: Poor
A68: Student 64 | B68: iPhone | G68: Student 64 | H68: Poor
A69: Student 65 | B69: iPhone | G69: Student 65 | H69: Poor
A70: Student 66 | B70: iPhone | G70: Student 66 | H70: Poor
A71: Student 67 | B71: iPhone | G71: Student 67 | H71: OK
A72: Student 68 | B72: Sprint | G72: Student 68 | H72: Poor
A73: Student 69 | B73: iPhone | G73: Student 69 | H73: Poor
A74: Student 70 | B74: Nokia | G74: Student 70 | H74: Poor
A75: Student 71 | B75: Motorola | G75: Student 71 | H75: Poor
A76: Student 72 | B76: Sprint | G76: Student 72 | H76: Good
A77: Student 73 | B77: iPhone | G77: Student 73 | H77: OK
A78: Student 74 | B78: Sony Erickson | G78: Student 74 | H78: Excelent
A79: Student 75 | B79: Nokia | G79: Student 75 | H79: Poor
A80: Student 76 | B80: Motorola | G80: Student 76 | H80: Good
A81: Student 77 | B81: iPhone | G81: Student 77 | H81: Poor
A82: Student 78 | B82: Motorola | G82: Student 78 | H82: OK
A83: Student 79 | B83: Nokia | G83: Student 79 | H83: Good
A84: Student 80 | B84: Motorola | G84: Student 80 | H84: Poor
A85: Student 81 | B85: Nokia | G85: Student 81 | H85: Poor
A86: Student 82 | B86: Sprint | G86: Student 82 | H86: Poor
A87: Student 83 | B87: Sprint | G87: Student 83 | H87: Poor
A88: Student 84 | B88: iPhone | G88: Student 84 | H88: Poor
A89: Student 85 | B89: iPhone | G89: Student 85 | H89: Good
A90: Student 86 | B90: iPhone | G90: Student 86 | H90: OK
A91: Student 87 | B91: iPhone | G91: Student 87 | H91: OK
A92: Student 88 | B92: Sprint | G92: Student 88 | H92: Good
A93: Student 89 | B93: Motorola | G93: Student 89 | H93: Poor
A94: Student 90 | B94: Sony Erickson | G94: Student 90 | H94: OK
A95: Student 91 | B95: Motorola | G95: Student 91 | H95: Poor
A96: Student 92 | B96: Samsung | G96: Student 92 | H96: Good
A97: Student 93 | B97: Nokia | G97: Student 93 | H97: Good
A98: Student 94 | B98: Sony Erickson | G98: Student 94 | H98: Poor
A99: Student 95 | B99: iPhone | G99: Student 95 | H99: OK
A100: Student 96 | B100: Nokia | G100: Student 96 | H100: Poor
A101: Student 97 | B101: iPhone | G101: Student 97 | H101: Poor
A102: Student 98 | B102: Nokia | G102: Student 98 | H102: Poor
A103: Student 99 | B103: Sony Erickson | G103: Student 99 | H103: Poor
A104: Student 100 | B104: Sprint | G104: Student 100 | H104: Poor
A105: Student 101 | B105: Nokia | G105: Student 101 | H105: Poor
A106: Student 102 | B106: iPhone | G106: Student 102 | H106: Poor
A107: Student 103 | B107: Sprint | G107: Student 103 | H107: Poor
A108: Student 104 | B108: Sony Erickson | G108: Student 104 | H108: Poor
A109: Student 105 | B109: Motorola | G109: Student 105 | H109: Poor
A110: Student 106 | B110: Nokia | G110: Student 106 | H110: Poor
A111: Student 107 | B111: iPhone | G111: Student 107 | H111: OK
A112: Student 108 | B112: Nokia | G112: Student 108 | H112: Excelent
A113: Student 109 | B113: Nokia | G113: Student 109 | H113: Poor
A114: Student 110 | B114: Motorola | G114: Student 110 | H114: Excelent
A115: Student 111 | B115: iPhone | G115: Student 111 | H115: OK
A116: Student 112 | B116: Nokia | G116: Student 112 | H116: Good
A117: Student 113 | B117: Nokia | G117: Student 113 | H117: Poor
A118: Student 114 | B118: Nokia | G118: Student 114 | H118: Good
A119: Student 115 | B119: Motorola | G119: Student 115 | H119: OK
A120: Student 116 | B120: Sprint | G120: Student 116 | H120: OK
A121: Student 117 | B121: Sprint | G121: Student 117 | H121: Poor
A122: Student 118 | B122: Sprint | G122: Student 118 | H122: Excelent
A123: Student 119 | B123: Nokia | G123: Student 119 | H123: Excelent
A124: Student 120 | B124: Nokia | G124: Student 120 | H124: Excelent
A125: Student 121 | B125: Sprint | G125: Student 121 | H125: Excelent
A126: Student 122 | B126: Nokia | G126: Student 122 | H126: OK
A127: Student 123 | B127: Samsung | G127: Student 123 | H127: Good
A128: Student 124 | B128: Samsung | G128: Student 124 | H128: Poor
A129: Student 125 | B129: Samsung | G129: Student 125 | H129: Poor
A130: Student 126 | B130: Samsung | G130: Student 126 | H130: Excelent
A131: Student 127 | B131: Motorola | G131: Student 127 | H131: Poor
A132: Student 128 | B132: Sony Erickson | G132: Student 128 | H132: Poor
A133: Student 129 | B133: Motorola | G133: Student 129 | H133: OK
A134: Student 130 | B134: iPhone | G134: Student 130 | H134: Poor
A135: Student 131 | B135: iPhone | G135: Student 131 | H135: Poor
A136: Student 132 | B136: Sprint | G136: Student 132 | H136: Poor
A137: Student 133 | B137: Samsung | G137: Student 133 | H137: OK
A138: Student 134 | B138: Nokia | G138: Student 134 | H138: Poor
A139: Student 135 | B139: Motorola | G139: Student 135 | H139: OK
A140: Student 136 | B140: Nokia | G140: Student 136 | H140: Poor
A141: Student 137 | B141: Motorola | G141: Student 137 | H141: Poor
A142: Student 138 | B142: Sony Erickson | G142: Student 138 | H142: OK
A143: Student 139 | B143: Samsung | G143: Student 139 | H143: Excelent
A144: Student 140 | B144: Nokia | G144: Student 140 | H144: OK
A145: Student 141 | B145: iPhone | G145: Student 141 | H145: Poor
A146: Student 142 | B146: Motorola | G146: Student 142 | H146: Poor
A147: Student 143 | B147: iPhone | G147: Student 143 | H147: Poor
A148: Student 144 | B148: Samsung | G148: Student 144 | H148: Poor
A149: Student 145 | B149: Motorola | G149: Student 145 | H149: OK
A150: Student 146 | B150: Nokia | G150: Student 146 | H150: Poor
A151: Student 147 | B151: Motorola | G151: Student 147 | H151: Poor
A152: Student 148 | B152: Samsung | G152: Student 148 | H152: OK
A153: Student 149 | B153: Sprint | G153: Student 149 | H153: Poor
A154: Student 150 | B154: Samsung | G154: Student 150 | H154: Excelent
A155: Student 151 | B155: Sony Erickson | G155: Student 151 | H155: Excelent
A156: Student 152 | B156: Nokia | G156: Student 152 | H156: Excelent
A157: Student 153 | B157: iPhone | G157: Student 153 | H157: OK
A158: Student 154 | B158: Sprint | G158: Student 154 | H158: Poor
A159: Student 155 | B159: iPhone | G159: Student 155 | H159: OK
A160: Student 156 | B160: iPhone | G160: Student 156 | H160: Poor
A161: Student 157 | B161: Samsung | G161: Student 157 | H161: Poor
A162: Student 158 | B162: Nokia | G162: Student 158 | H162: Poor
A163: Student 159 | B163: Nokia | G163: Student 159 | H163: Poor
A164: Student 160 | B164: iPhone | G164: Student 160 | H164: Poor
A165: Student 161 | B165: Sony Erickson | G165: Student 161 | H165: OK
A166: Student 162 | B166: Nokia | G166: Student 162 | H166: Poor
A167: Student 163 | B167: Sprint | G167: Student 163 | H167: Poor
A168: Student 164 | B168: Nokia | G168: Student 164 | H168: Excelent
A169: Student 165 | B169: Samsung | G169: Student 165 | H169: Good
A170: Student 166 | B170: iPhone | G170: Student 166 | H170: OK
A171: Student 167 | B171: Samsung | G171: Student 167 | H171: Good
A172: Student 168 | B172: Motorola | G172: Student 168 | H172: OK
A173: Student 169 | B173: Sony Erickson | G173: Student 169 | H173: Poor
A174: Student 170 | B174: Nokia | G174: Student 170 | H174: Poor
A175: Student 171 | B175: Nokia | G175: Student 171 | H175: OK
A176: Student 172 | B176: Nokia | G176: Student 172 | H176: OK
A177: Student 173 | B177: Nokia | G177: Student 173 | H177: Poor
A178: Student 174 | B178: iPhone | G178: Student 174 | H178: OK
A179: Student 175 | B179: Motorola | G179: Student 175 | H179: Good
A180: Student 176 | B180: Sprint | G180: Student 176 | H180: Poor
A181: Student 177 | B181: iPhone | G181: Student 177 | H181: Excelent
A182: Student 178 | B182: Motorola | G182: Student 178 | H182: Poor
A183: Student 179 | B183: Nokia | G183: Student 179 | H183: Poor
A184: Student 180 | B184: iPhone | G184: Student 180 | H184: Poor
A185: Student 181 | B185: iPhone | G185: Student 181 | H185: OK
A186: Student 182 | B186: iPhone | G186: Student 182 | H186: Poor
A187: Student 183 | B187: Sprint | G187: Student 183 | H187: Poor
A188: Student 184 | B188: Nokia | G188: Student 184 | H188: Poor
A189: Student 185 | B189: iPhone | G189: Student 185 | H189: Poor
A190: Student 186 | B190: iPhone | G190: Student 186 | H190: OK
A191: Student 187 | B191: Sprint | G191: Student 187 | H191: Poor
A192: Student 188 | B192: Motorola | G192: Student 188 | H192: Poor
A193: Student 189 | B193: iPhone | G193: Student 189 | H193: Good
A194: Student 190 | B194: iPhone | G194: Student 190 | H194: Good
A195: Student 191 | B195: iPhone | G195: Student 191 | H195: OK
A196: Student 192 | B196: Sony Erickson | G196: Student 192 | H196: Good
A197: Student 193 | B197: iPhone | G197: Student 193 | H197: Poor
A198: Student 194 | B198: Motorola | G198: Student 194 | H198: OK
A199: Student 195 | B199: iPhone | G199: Student 195 | H199: Good
A200: Student 196 | B200: Nokia | G200: Student 196 | H200: Poor
A201: Student 197 | B201: Sony Erickson | G201: Student 197 | H201: OK
... 188 more rows

Sheet CrossSectional
A1: County | B1: Date | C1: Number of Building Permits Issued | E1: Date | F1: County | G1: Permits Issued
A2: County 01 | B2: 2007-06-30 | C2: 173 | E2: 2007-06-30
A3: County 02 | B3: 2007-06-30 | C3: 172 | F3: County 06 | G3: 0
A4: County 03 | B4: 2007-06-30 | C4: 248 | F4: County 10 | G4: 62
A5: County 04 | B5: 2007-06-30 | C5: 152 | F5: County 14 | G5: 67
A6: County 05 | B6: 2007-06-30 | C6: 73 | F6: County 11 | G6: 67
A7: County 06 | B7: 2007-06-30 | C7: 0 | F7: County 05 | G7: 73
A8: County 07 | B8: 2007-06-30 | C8: 98 | F8: County 17 | G8: 80
A9: County 08 | B9: 2007-06-30 | C9: 126 | F9: County 07 | G9: 98
A10: County 09 | B10: 2007-06-30 | C10: 231 | F10: County 08 | G10: 126
A11: County 10 | B11: 2007-06-30 | C11: 62 | F11: County 13 | G11: 149
A12: County 11 | B12: 2007-06-30 | C12: 67 | F12: County 04 | G12: 152
A13: County 12 | B13: 2007-06-30 | C13: 186 | F13: County 02 | G13: 172
A14: County 13 | B14: 2007-06-30 | C14: 149 | F14: County 01 | G14: 173
A15: County 14 | B15: 2007-06-30 | C15: 67 | F15: County 16 | G15: 178
A16: County 15 | B16: 2007-06-30 | C16: 220 | F16: County 12 | G16: 186
A17: County 16 | B17: 2007-06-30 | C17: 178 | F17: County 15 | G17: 220
A18: County 17 | B18: 2007-06-30 | C18: 80 | F18: County 09 | G18: 231
F19: County 03 | G19: 248
E20: Grand Total | G20: 2282

Sheet TimeSeries
A1: County | B1: Date | C1: Number of Building Permits Issued | E1: County | F1: Date | G1: Building Permits Issued
A2: LUCAS | B2: 2007-06-30 | C2: 100 | E2: LUCAS | F2: 2007-06-30 | G2: 100
A3: LUCAS | B3: 2007-07-31 | C3: 80 | F3: 2007-07-31 | G3: 80
A4: LUCAS | B4: 2007-08-31 | C4: 95 | F4: 2007-08-31 | G4: 95
A5: LUCAS | B5: 2007-09-30 | C5: 65 | F5: 2007-09-30 | G5: 65
A6: LUCAS | B6: 2007-10-31 | C6: 50 | F6: 2007-10-31 | G6: 50
A7: LUCAS | B7: 2007-11-30 | C7: 60 | F7: 2007-11-30 | G7: 60
A8: LUCAS | B8: 2007-12-31 | C8: 27 | F8: 2007-12-31 | G8: 27
A9: LUCAS | B9: 2008-01-31 | C9: 15 | F9: 2008-01-31 | G9: 15
A10: LUCAS | B10: 2008-02-29 | C10: 20 | F10: 2008-02-29 | G10: 20
A11: LUCAS | B11: 2008-03-31 | C11: 30 | F11: 2008-03-31 | G11: 30
A12: LUCAS | B12: 2008-04-30 | C12: 32 | F12: 2008-04-30 | G12: 32
A13: LUCAS | B13: 2008-05-31 | C13: 15 | F13: 2008-05-31 | G13: 15
A14: LUCAS | B14: 2008-06-30 | C14: 10 | F14: 2008-06-30 | G14: 10
A15: LUCAS | B15: 2008-07-31 | C15: 22 | F15: 2008-07-31 | G15: 22
A16: LUCAS | B16: 2008-08-31 | C16: 41 | F16: 2008-08-31 | G16: 41
A17: LUCAS | B17: 2008-09-30 | C17: 37 | F17: 2008-09-30 | G17: 37
A18: LUCAS | B18: 2008-10-31 | C18: 66 | F18: 2008-10-31 | G18: 66
E19: Grand Total | G19: 765

Sheet TimeSeries (2)
A1: Sales of Organic Foods (In Millions)
B2: 2005 | C2: 2006 | D2: 2007 | E2: 2008
A3: Whole Foods | B3: 5000000000 | C3: 6000000000 | D3: 8500000000 | E3: 7900000000
A4: Safeway | B4: 500000000 | C4: 2000000000 | D4: 3000000000 | E4: 2520000000
A5: Trader Joes | B5: 1000000000 | C5: 1200000000 | D5: 1300000000 | E5: 1250000000
G8: Time Series ==>
G24: Cross-sectional ==>

Sheet StatisticalStudies

Sheet DescriptiveStatistics
A1: Data Set | E1: Descriptive Statistics: Numerical Measure
A2: Cost of Parts | E2: Mean = (Add up all values)/(Count all observation) = AVERAGE = | F2: =AVERAGE(A3:A52) -> 78.98 | G2: "Typical Value"
A3: 109
A4: 105 | E4: Descriptive Statistics: Tabular Method
A5: 105 | E5: Part Cost Category | F5: Part Frequency | G5: Percent Frequency
A6: 104 | E6: =DOLLAR(C15,0)&" up to "&DOLLAR(D15,0) -> $50 up to $60 | F6: =COUNTIF($A$3:$A$52,"<"&D15)-COUNTIF($A$3:$A$52,"<"&C15) -> 2 | G6: =F6/$F$12 -> 0.04
A7: 101 | E7: $60 up to $70 | F7: 13 | G7: 0.26
A8: 99 | E8: $70 up to $80 | F8: 16 | G8: 0.32
A9: 98 | E9: $80 up to $90 | F9: 7 | G9: 0.14
A10: 97 | E10: $90 up to $100 | F10: 7 | G10: 0.14
A11: 97 | E11: $100 up to $110 | F11: 5 | G11: 0.1
A12: 97 | F12: =SUM(F6:F11) -> 50 | G12: =SUM(G6:G11) -> 1
A13: 93 | I13: Statistical Inference (Creating reasonable estimates from a sample)
A14: 91 | I14: In our budget projections we will use the average of $79 to help project future parts costs.
A15: 89 | C15: =F46 -> 50 | D15: =C15+F$45 -> 60
A16: 88 | C16: =D15 -> 60 | D16: 70
A17: 85 | C17: =D16 -> 70 | D17: 80
A18: 83 | C18: =D17 -> 80 | D18: 90
A19: 82 | C19: =D18 -> 90 | D19: 100
A20: 80 | C20: =D19 -> 100 | D20: 110
A21: 80
A22: 79
A23: 79
A24: 79
A25: 78
A26: 77
A27: 76
A28: 75
A29: 75 | F29: Values
A30: 75 | E30: Row Labels | F30: Frequency | G30: % Frequency
A31: 74 | E31: 50-59 | F31: 2 | G31: 0.04
A32: 74 | E32: 60-69 | F32: 13 | G32: 0.26
A33: 73 | E33: 70-79 | F33: 16 | G33: 0.32
A34: 72 | E34: 80-89 | F34: 7 | G34: 0.14
A35: 72 | E35: 90-99 | F35: 7 | G35: 0.14
A36: 71 | E36: 100-110 | F36: 5 | G36: 0.1
A37: 71 | E37: Grand Total | F37: 50 | G37: 1
A38: 69
A39: 69 | E39: Count Observations =n = | F39: =COUNT(DescriptiveStatistics!$A$3:$A$52) -> 50
A40: 69 | E40: Max | F40: =MAX(DescriptiveStatistics!$A$3:$A$52) -> 109
A41: 68 | E41: Min | F41: =MIN(DescriptiveStatistics!$A$3:$A$52) -> 52
A42: 68 | E42: k = # of Classes = | F42: 6
A43: 68 | E43: k = # of Classes = 2^k >= n | F43: =2^F42>=F39 -> TRUE
A44: 67 | E44: Estimate class width = | F44: =(F40-F41)/F42 -> 9.5
A45: 66 | E45: ROUNDUP | F45: =ROUNDUP(F44,0) -> 10
A46: 65 | E46: Lower Limit of First = | F46: 50
A47: 62
A48: 62
A49: 62
A50: 62
A51: 57
A52: 52

Sheet InferentialStatisticsTerms
A1: Population | B1: The set of all elements of interest in a particular study
A2: Sample | B2: A subset of the population
A3: Statistical inference | B3: The process of using data obtained from a sample to make estimates and test hypotheses about the characteristics of a population | J3: 50000
A4: Census | B4: Collecting data for a population
A5: Sample survey | B5: Collecting data for a sample
A7: Population: ALL Students In Class | B7: Sample: Just Some of the students in the class
A8: Student 01 | B8: =INDEX($A$8:$A$17,RANDBETWEEN(1,COUNTA($A$8:$A$17))) -> Student 10
A9: Student 02 | B9: =INDEX($A$8:$A$17,RANDBETWEEN(1,COUNTA($A$8:$A$17))) -> Student 02
A10: Student 03 | B10: =INDEX($A$8:$A$17,RANDBETWEEN(1,COUNTA($A$8:$A$17))) -> Student 08
A11: Student 04
A12: Student 05
A13: Student 06
A14: Student 07
A15: Student 08
A16: Student 09
A17: Student 10

Sheet InferentialStatisticsExample
A1: Production: Sampling box weight to see if filling machine is filling accurately (chapter 9)
A2: H0 : Mu = 10 grams
A3: H1 : Mu <> 10 grams
A4: Historical Average = | B4: 10 | C4: grams
A5: Historical Standard Deviation = | B5: 0.5 | C5: grams
A6: Level of Significance = | B6: 0.05
A7: Level of Significance Divided by 2 = | B7: =B6/2 -> 0.025
A8: Sample Mean = AVERAGE = | B8: =AVERAGE(A22:A99) -> 9.93175641 | C8: grams
A9: Sample Standard Deviation = STDEV = | B9: =STDEV(A22:A99) -> 0.2224251332 | C9: grams
A10: Sample size = COUNT = | B10: =COUNT($A$22:$A$99) -> 78
A11: Standard Error | B11: =B5/SQRT(B10) -> 0.05661385171 | C11: grams
A12: z | B12: =(B8-B4)/B11 -> -1.205422131
A13: X | B13: =B12*B11+B4 -> 9.93175641 | C13: =D102 -> P(9.932) | H13: =VLOOKUP(B13,B103:C602,2) -> 0.7901034817
A14: p-value = | B14: =IF(B8<B4,2*NORMDIST(B8,B4,B5/SQRT(B10),1),2*(1-NORMDIST(B8,B4,B5/SQRT(B10),1))) -> 0.2280403824
A15: p-value = | B15: =2*(1-NORMSDIST(ABS(B12))) -> 0.2280403824
A16: =IF(B15>B6,"Because the p-value is greater than our alpha, it is reasonable to assume that the machine is filling accurately"," Because the p-value is less than or equal to our alpha, it is reasonable to assume that the machine is not filling accurately") -> Because the p-value is greater than our alpha, it is reasonable to assume that the machine is filling accurately
A21: Sample data
A22: =RANDBETWEEN(9500,10300)/1000 -> 10.226
A23: 9.61
A24: 9.588
A25: 9.647
A26: 9.882
A27: 9.539
A28: 10.022
A29: 10.143
A30: 9.9
A31: 10.142
A32: 9.819
A33: 9.784
A34: 9.986
A35: 9.988
A36: 9.795
A37: 9.672
A38: 10.06
A39: 10.13
A40: 9.874
A41: 9.572
A42: 9.818
A43: 10.022
A44: 9.862
A45: 9.871
A46: 9.716
A47: 10.062
A48: 9.691
A49: 9.749
A50: 9.746
A51: 10.035
A52: 10.149
A53: 10.171
A54: 10.299
A55: 10.015
A56: 9.95
A57: 10.115
A58: 9.827
A59: 10.282
A60: 9.786
A61: 9.996
A62: 9.926
A63: 9.623
A64: 9.5
A65: 10.212
A66: 9.985
A67: 10.112
A68: 10.102
A69: 9.69
A70: 10.238
A71: 9.827
A72: 10.181
A73: 10.184
A74: 9.793
A75: 10.181
A76: 10.197
A77: 9.854
A78: 9.71
A79: 10.098
A80: 10.234
A81: 9.795
A82: 9.628
A83: 10.091
A84: 9.743
A85: 10.105
A86: =RANDBETWEEN(9500,10300)/1000 -> 9.618
A87: 9.607
A88: 9.579
A89: 10.02
A90: 10.174
A91: 10.27
A92: 9.541
A93: 9.84
A94: 10.254
A95: 9.905
A96: 9.859
A97: 10.239
A98: 10.135
A99: 10.086
A101: Chart Data:
A102: z | B102: X | C102: P(Exactly x) | D102: ="P("&ROUND(B8,3)&")" -> P(9.932) | E102: P(alpha)
A103: =(B103-B$4)/B$11 -> -35.32704347 | B103: 8 | C103: =NORMDIST(B103,B$4,B$5,0) -> 0.0002676604515 | D103: =IF(C103<=B$14/2,C103,0) -> 0.0002676604515 | E103: =IF(C103<=B$6/2,C103,0) -> 0.0002676604515
A104: -35.15040825 | B104: =B103+0.01 -> 8.01 | C104: 0.0002898951208 | D104: 0.0002898951208 | E104: 0.0002898951208
A105: -34.97377303 | B105: =B104+0.01 -> 8.02 | C105: 0.0003138512681 | D105: 0.0003138512681 | E105: 0.0003138512681
A106: -34.79713781 | B106: 8.03 | C106: 0.0003396511989 | D106: 0.0003396511989 | E106: 0.0003396511989
A107: -34.6205026 | B107: 8.04 | C107: 0.000367424996 | D107: 0.000367424996 | E107: 0.000367424996
A108: -34.44386738 | B108: 8.05 | C108: 0.0003973109428 | D108: 0.0003973109428 | E108: 0.0003973109428
A109: -34.26723216 | B109: 8.06 | C109: 0.000429455963 | D109: 0.000429455963 | E109: 0.000429455963
A110: -34.09059694 | B110: 8.07 | C110: 0.0004640160793 | D110: 0.0004640160793 | E110: 0.0004640160793
A111: -33.91396173 | B111: 8.08 | C111: 0.0005011568898 | D111: 0.0005011568898 | E111: 0.0005011568898
A112: -33.73732651 | B112: 8.09 | C112: 0.0005410540629 | D112: 0.0005410540629 | E112: 0.0005410540629
A113: -33.56069129 | B113: 8.1 | C113: 0.0005838938516 | D113: 0.0005838938516 | E113: 0.0005838938516
A114: -33.38405607 | B114: 8.11 | C114: 0.0006298736258 | D114: 0.0006298736258 | E114: 0.0006298736258
A115: -33.20742086 | B115: 8.12 | C115: 0.000679202425 | D115: 0.000679202425 | E115: 0.000679202425
A116: -33.03078564 | B116: 8.13 | C116: 0.0007321015291 | D116: 0.0007321015291 | E116: 0.0007321015291
A117: -32.85415042 | B117: 8.14 | C117: 0.0007888050499 | D117: 0.0007888050499 | E117: 0.0007888050499
A118: -32.67751521 | B118: 8.15 | C118: 0.0008495605411 | D118: 0.0008495605411 | E118: 0.0008495605411
A119: -32.50087999 | B119: 8.16 | C119: 0.0009146296281 | D119: 0.0009146296281 | E119: 0.0009146296281
A120: -32.32424477 | B120: 8.17 | C120: 0.0009842886577 | D120: 0.0009842886577 | E120: 0.0009842886577
A121: -32.14760955 | B121: 8.18 | C121: 0.001058829366 | D121: 0.001058829366 | E121: 0.001058829366
A122: -31.97097434 | B122: 8.19 | C122: 0.001138559568 | D122: 0.001138559568 | E122: 0.001138559568
A123: -31.79433912 | B123: 8.2 | C123: 0.00122380386 | D123: 0.00122380386 | E123: 0.00122380386
A124: -31.6177039 | B124: 8.21 | C124: 0.001314904351 | D124: 0.001314904351 | E124: 0.001314904351
A125: -31.44106868 | B125: 8.22 | C125: 0.001412221401 | D125: 0.001412221401 | E125: 0.001412221401
A126: -31.26443347 | B126: 8.23 | C126: 0.001516134383 | D126: 0.001516134383 | E126: 0.001516134383
A127: -31.08779825 | B127: 8.24 | C127: 0.001627042462 | D127: 0.001627042462 | E127: 0.001627042462
A128: -30.91116303 | B128: 8.25 | C128: 0.00174536539 | D128: 0.00174536539 | E128: 0.00174536539
A129: -30.73452781 | B129: 8.26 | C129: 0.001871544314 | D129: 0.001871544314 | E129: 0.001871544314
A130: -30.5578926 | B130: 8.27 | C130: 0.002006042601 | D130: 0.002006042601 | E130: 0.002006042601
A131: -30.38125738 | B131: 8.28 | C131: 0.00214934668 | D131: 0.00214934668 | E131: 0.00214934668
A132: -30.20462216 | B132: 8.29 | C132: 0.002301966888 | D132: 0.002301966888 | E132: 0.002301966888
A133: -30.02798695 | B133: 8.3 | C133: 0.002464438337 | D133: 0.002464438337 | E133: 0.002464438337
A134: -29.85135173 | B134: 8.31 | C134: 0.002637321784 | D134: 0.002637321784 | E134: 0.002637321784
A135: -29.67471651 | B135: 8.32 | C135: 0.002821204514 | D135: 0.002821204514 | E135: 0.002821204514
A136: -29.49808129 | B136: 8.33 | C136: 0.00301670123 | D136: 0.00301670123 | E136: 0.00301670123
A137: -29.32144608 | B137: 8.34 | C137: 0.003224454944 | D137: 0.003224454944 | E137: 0.003224454944
A138: -29.14481086 | B138: 8.35 | C138: 0.003445137878 | D138: 0.003445137878 | E138: 0.003445137878
A139: -28.96817564 | B139: 8.36 | C139: 0.003679452362 | D139: 0.003679452362 | E139: 0.003679452362
A140: -28.79154042 | B140: 8.37 | C140: 0.003928131731 | D140: 0.003928131731 | E140: 0.003928131731
A141: -28.61490521 | B141: 8.38 | C141: 0.004191941226 | D141: 0.004191941226 | E141: 0.004191941226
A142: -28.43826999 | B142: 8.39 | C142: 0.004471678879 | D142: 0.004471678879 | E142: 0.004471678879
A143: -28.26163477 | B143: 8.4 | C143: 0.004768176403 | D143: 0.004768176403 | E143: 0.004768176403
A144: -28.08499955 | B144: 8.41 | C144: 0.005082300057 | D144: 0.005082300057 | E144: 0.005082300057
A145: -27.90836434 | B145: 8.42 | C145: 0.005414951514 | D145: 0.005414951514 | E145: 0.005414951514
A146: -27.73172912 | B146: 8.43 | C146: 0.005767068695 | D146: 0.005767068695 | E146: 0.005767068695
A147: -27.5550939 | B147: 8.44 | C147: 0.006139626602 | D147: 0.006139626602 | E147: 0.006139626602
A148: -27.37845869 | B148: 8.45 | C148: 0.006533638112 | D148: 0.006533638112 | E148: 0.006533638112
A149: -27.20182347 | B149: 8.46 | C149: 0.006950154756 | D149: 0.006950154756 | E149: 0.006950154756
A150: -27.02518825 | B150: 8.47 | C150: 0.007390267459 | D150: 0.007390267459 | E150: 0.007390267459
A151: -26.84855303 | B151: 8.48 | C151: 0.007855107258 | D151: 0.007855107258 | E151: 0.007855107258
A152: -26.67191782 | B152: 8.49 | C152: 0.008345845969 | D152: 0.008345845969 | E152: 0.008345845969
A153: -26.4952826 | B153: 8.5 | C153: 0.008863696824 | D153: 0.008863696824 | E153: 0.008863696824
A154: -26.31864738 | B154: 8.51 | C154: 0.009409915054 | D154: 0.009409915054 | E154: 0.009409915054
A155: -26.14201216 | B155: 8.52 | C155: 0.009985798427 | D155: 0.009985798427 | E155: 0.009985798427
A156: -25.96537695 | B156: 8.53 | C156: 0.01059268773 | D156: 0.01059268773 | E156: 0.01059268773
A157: -25.78874173 | B157: 8.54 | C157: 0.01123196719 | D157: 0.01123196719 | E157: 0.01123196719
A158: -25.61210651 | B158: 8.55 | C158: 0.01190506484 | D158: 0.01190506484 | E158: 0.01190506484
A159: -25.4354713 | B159: 8.56 | C159: 0.01261345279 | D159: 0.01261345279 | E159: 0.01261345279
A160: -25.25883608 | B160: 8.57 | C160: 0.01335864748 | D160: 0.01335864748 | E160: 0.01335864748
A161: -25.08220086 | B161: 8.58 | C161: 0.01414220977 | D161: 0.01414220977 | E161: 0.01414220977
A162: -24.90556564 | B162: 8.59 | C162: 0.01496574505 | D162: 0.01496574505 | E162: 0.01496574505
A163: -24.72893043 | B163: 8.6 | C163: 0.01583090317 | D163: 0.01583090317 | E163: 0.01583090317
A164: -24.55229521 | B164: 8.61 | C164: 0.01673937831 | D164: 0.01673937831 | E164: 0.01673937831
A165: -24.37565999 | B165: 8.62 | C165: 0.0176929088 | D165: 0.0176929088 | E165: 0.0176929088
A166: -24.19902477 | B166: 8.63 | C166: 0.01869327674 | D166: 0.01869327674 | E166: 0.01869327674
A167: =(B167-B$4)/B$11 -> -24.02238956 | B167: 8.64 | C167: =NORMDIST(B167,B$4,B$5,0) -> 0.01974230759 | D167: =IF(C167<=B$14/2,C167,0) -> 0.01974230759 | E167: =IF(C167<=B$6/2,C167,0) -> 0.01974230759
A168: -23.84575434 | B168: 8.65 | C168: 0.02084186963 | D168: 0.02084186963 | E168: 0.02084186963
A169: -23.66911912 | B169: =B168+0.01 -> 8.66 | C169: 0.02199387326 | D169: 0.02199387326 | E169: 0.02199387326
A170: -23.4924839 | B170: 8.67 | C170: 0.02320027023 | D170: 0.02320027023 | E170: 0.02320027023
A171: -23.31584869 | B171: 8.68 | C171: 0.0244630527 | D171: 0.0244630527 | E171: 0.0244630527
A172: -23.13921347 | B172: 8.69 | C172: 0.02578425222 | D172: 0.02578425222 | E172: 0
A173: -22.96257825 | B173: 8.7 | C173: 0.02716593847 | D173: 0.02716593847 | E173: 0
A174: -22.78594304 | B174: 8.71 | C174: 0.02861021799 | D174: 0.02861021799 | E174: 0
A175: -22.60930782 | B175: 8.72 | C175: 0.03011923265 | D175: 0.03011923265 | E175: 0
A176: -22.4326726 | B176: 8.73 | C176: 0.03169515805 | D176: 0.03169515805 | E176: 0
A177: -22.25603738 | B177: 8.74 | C177: 0.03334020167 | D177: 0.03334020167 | E177: 0
A178: -22.07940217 | B178: 8.75 | C178: 0.03505660099 | D178: 0.03505660099 | E178: 0
A179: -21.90276695 | B179: 8.76 | C179: 0.03684662129 | D179: 0.03684662129 | E179: 0
A180: -21.72613173 | B180: 8.77 | C180: 0.03871255346 | D180: 0.03871255346 | E180: 0
A181: -21.54949651 | B181: 8.78 | C181: 0.04065671148 | D181: 0.04065671148 | E181: 0
A182: -21.3728613 | B182: 8.79 | C182: 0.0426814298 | D182: 0.0426814298 | E182: 0
A183: -21.19622608 | B183: 8.8 | C183: 0.04478906059 | D183: 0.04478906059 | E183: 0
A184: -21.01959086 | B184: 8.81 | C184: 0.04698197072 | D184: 0.04698197072 | E184: 0
A185: -20.84295564 | B185: 8.82 | C185: 0.04926253861 | D185: 0.04926253861 | E185: 0
A186: -20.66632043 | B186: 8.83 | C186: 0.05163315094 | D186: 0.05163315094 | E186: 0
A187: -20.48968521 | B187: 8.84 | C187: 0.05409619909 | D187: 0.05409619909 | E187: 0
A188: -20.31304999 | B188: 8.85 | C188: 0.05665407548 | D188: 0.05665407548 | E188: 0
A189: -20.13641478 | B189: 8.86 | C189: 0.05930916969 | D189: 0.05930916969 | E189: 0
A190: -19.95977956 | B190: 8.87 | C190: 0.06206386443 | D190: 0.06206386443 | E190: 0
A191: -19.78314434 | B191: 8.88 | C191: 0.06492053129 | D191: 0.06492053129 | E191: 0
A192: -19.60650912 | B192: 8.89 | C192: 0.06788152636 | D192: 0.06788152636 | E192: 0
A193: -19.42987391 | B193: 8.9 | C193: 0.07094918569 | D193: 0.07094918569 | E193: 0
A194: -19.25323869 | B194: 8.91 | C194: 0.0741258205 | D194: 0.0741258205 | E194: 0
A195: -19.07660347 | B195: 8.92 | C195: 0.07741371229 | D195: 0.07741371229 | E195: 0
A196: -18.89996825 | B196: 8.93 | C196: 0.08081510785 | D196: 0.08081510785 | E196: 0
A197: -18.72333304 | B197: 8.94 | C197: 0.08433221392 | D197: 0.08433221392 | E197: 0
A198: -18.54669782 | B198: 8.95 | C198: 0.08796719196 | D198: 0.08796719196 | E198: 0
A199: -18.3700626 | B199: 8.96 | C199: 0.09172215254 | D199: 0.09172215254 | E199: 0
A200: -18.19342738 | B200: 8.97 | C200: 0.09559914976 | D200: 0.09559914976 | E200: 0
A201: -18.01679217 | B201: 8.98 | C201: 0.09960017547 | D201: 0.09960017547 | E201: 0
A202: -17.84015695 | B202: 8.99 | C202: 0.1037271534 | D202: 0.1037271534 | E202: 0
A203: -17.66352173 | B203: 9 | C203: 0.107981933 | D203: 0.107981933 | E203: 0
A204: -17.48688652 | B204: 9.01 | C204: 0.1123662838 | D204: 0.1123662838 | E204: 0
A205: -17.3102513 | B205: 9.02 | C205: 0.1168818887 | D205: 0 | E205: 0
... 397 more rows

Sheet Sheet1
